bitfinex/quotes_SOLUSD_20240816
["timestamp","ask_amount","ask_price","bid_price","bid_amount"]
[1723786108625,28.20219741,142.7,142.63,17.5267]
[1723786108796,28.20219741,142.7,142.63,24.5373]
[1723786108797,7.25918,142.69,142.63,24.5373]
[1723786109324,7.25918,142.69,142.64,20.0]
[1723786109504,7.25918,142.69,142.63,24.5373]
[1723786110123,7.25918,142.69,142.64,7.0104]
[1723786110995,0.25098,142.69,142.65,7.01]
[1723786111198,0.12549,142.68,142.65,7.01]
[1723786111504,0.25098,142.7,142.65,7.01]
[1723786112102,0.25098,142.7,142.65,27.01]
[1723786112432,0.25098,142.7,142.65,7.01]
[1723786113330,0.25098,142.7,142.66,7.0094]
[1723786113635,0.25098,142.7,142.64,7.0102]
[1723786113636,7.25878,142.7,142.64,7.0102]
[1723786114005,7.25878,142.7,142.65,7.0098]
[1723786115014,0.25098,142.7,142.67,7.0091]
[1723786115351,72.84408327,142.74,142.67,20.0]
[1723786115352,20.5388,142.74,142.67,20.0]
[1723786115647,20.5388,142.74,142.69,7.0081]
[1723786115648,27.5449,142.74,142.69,7.0081]
[1723786116006,46.9888,142.74,142.67,17.522]
[1723786116344,7.0072,142.71,142.67,17.522]
[1723786117041,46.9888,142.74,142.67,24.5311]
[1723786117042,7.0067,142.72,142.67,24.5311]
[1723786117205,0.25098,142.71,142.67,24.5311]
[1723786118423,0.25098,142.71,142.65,7.0097]
[1723786118620,0.12549,142.69,142.65,7.0097]
[1723786118836,0.25098,142.69,142.65,7.0097]
[1723786122554,7.25928,142.69,142.64,24.5367]
[1723786125548,7.25928,142.69,142.64,44.5367]
[1723786126251,7.25928,142.69,142.64,24.5367]
[1723786126823,7.25928,142.69,142.64,44.5367]
[1723786127625,7.25928,142.69,142.64,24.5367]
[1723786128441,7.0087,142.68,142.64,24.5367]
[1723786128645,0.25098,142.69,142.62,7.854555]
[1723786128646,0.12549,142.66,142.62,7.854555]
[1723786128955,0.12549,142.66,142.62,0.843055]
[1723786130061,0.12549,142.66,142.62,7.854555]
[1723786131170,14.34329,142.66,142.62,7.854555]
[1723786131341,0.12549,142.65,142.62,0.843055]
[1723786132243,0.12549,142.64,142.62,0.843055]
[1723786133657,0.25098,142.65,142.62,20.843055]
[1723786134254,0.25098,142.65,142.62,0.843055]
[1723786134786,0.12549,142.66,142.62,7.854555]
[1723786134962,0.12549,142.66,142.62,27.854555]
[1723786135166,0.25098,142.66,142.62,27.854555]
[1723786135364,0.25098,142.66,142.64,20.0]
[1723786135673,7.0093,142.67,142.64,20.0]
[1723786135884,0.12549,142.66,142.62,7.854555]
[1723786136559,7.26088,142.66,142.62,0.843055]
[1723786137183,7.0102,142.65,142.62,0.843055]
[1723786138875,7.26078,142.66,142.62,0.843055]
[1723786139077,7.26078,142.66,142.63,20.0]
[1723786139381,7.26078,142.66,142.62,0.843055]
[1723786139575,7.26078,142.66,142.63,20.0]
[1723786140472,7.26078,142.66,142.62,0.843055]
[1723786140872,7.26078,142.66,142.62,20.843055]
[1723786141069,7.26078,142.66,142.62,0.843055]
[1723786141477,7.26078,142.66,142.62,20.843055]
[1723786142073,7.0091,142.68,142.64,20.0]
[1723786143168,7.0091,142.68,142.66,20.0]
[1723786143659,7.25928,142.69,142.64,27.0105]
[1723786144461,7.25928,142.69,142.64,7.0105]
[1723786146399,7.25928,142.69,142.64,27.0105]
[1723786147594,7.25928,142.69,142.64,7.0105]
[1723786148004,17.83928,142.69,142.64,7.0105]
[1723786150672,17.83928,142.69,142.64,27.0105]
[1723786151298,17.83928,142.69,142.64,7.0105]
[1723786152092,0.12549,142.67,142.63,24.5383]
[1723786152270,7.26018,142.67,142.63,24.5383]
[1723786152475,7.0097,142.66,142.62,0.843055]
[1723786153591,7.0108,142.64,142.62,0.843055]
[1723786153962,17.5902,142.65,142.62,0.843055]
[1723786154659,17.71659,142.63,142.62,0.843055]
[1723786154859,17.84208,142.63,142.62,0.843055]
[1723786155970,10.83098,142.63,142.62,0.843055]
[1723786156170,0.25098,142.63,142.62,0.843055]
[1723786156397,7.26208,142.63,142.62,0.843055]
[1723786156698,0.12549,142.63,142.62,0.843055]
[1723786156901,0.12549,142.64,142.62,0.843055]
[1723786157077,0.25098,142.64,142.62,0.843055]
[1723786161602,7.26168,142.64,142.62,0.843055]
[1723786163569,7.0111,142.63,142.62,0.843055]
[1723786163769,7.26208,142.63,142.62,0.843055]
[1723786166623,17.96757,142.63,142.62,0.843055]
[1723786166919,63.09306,142.63,142.62,0.843055]
[1723786167491,17.96757,142.63,142.62,0.843055]
[1723786167696,17.84208,142.63,142.62,0.843055]
[1723786169930,63.09306,142.63,142.62,0.843055]
[1723786171325,17.96757,142.63,142.62,0.343055]
[1723786172233,63.09306,142.63,142.62,0.343055]
[1723786174920,0.12549,142.58,142.54,22.3882]
[1723786175113,7.26468,142.58,142.54,22.3882]
[1723786175969,0.25098,142.58,142.54,22.3882]
[1723786177140,0.12549,142.56,142.53,24.5557]
[1723786177713,0.25098,142.57,142.53,24.5557]
[1723786177920,7.26518,142.57,142.53,17.5397]
[1723786181360,0.12549,142.55,142.53,17.5397]
[1723786181526,0.25098,142.55,142.53,17.5397]
[1723786182757,0.25098,142.55,142.52,7.0162]
[1723786183052,0.25098,142.55,142.51,22.5062]
[1723786184749,0.25098,142.55,142.51,15.4893]
[1723786184750,0.12549,142.53,142.51,15.4893]
[1723786184954,0.25098,142.53,142.51,15.4893]
[1723786185427,0.12549,142.53,142.51,15.4893]
[1723786185618,0.25098,142.54,142.51,15.4893]
[1723786186662,0.25098,142.54,142.51,22.5062]
[1723786186954,6.29,142.59,142.51,35.4893]
[1723786187123,27.65854748,142.62,142.53,27.0159]
[1723786187124,7.0137,142.58,142.53,27.0159]
[1723786187337,7.0141,142.57,142.53,27.0159]
[1723786187538,7.0141,142.57,142.53,7.0159]
[1723786188369,0.25098,142.56,142.52,24.5571]
[1723786188848,0.25098,142.56,142.53,7.0159]
[1723786189041,0.25098,142.56,142.53,27.0159]
[1723786189249,0.12549,142.57,142.53,27.0159]
[1723786189449,0.12549,142.57,142.52,17.5407]
[1723786189450,0.12549,142.57,142.54,7.0154]
[1723786189638,7.13909,142.58,142.54,7.0154]
[1723786191084,0.12549,142.57,142.54,7.0154]
[1723786191374,6.6565,142.63,142.58,7.0134]
[1723786191544,32.13251587,142.64,142.57,7.0139]
[1723786191741,7.0119,142.62,142.57,7.0139]
[1723786192776,0.25098,142.61,142.57,7.0139]
[1723786193078,0.12549,142.61,142.57,7.0139]
[1723786194160,0.25098,142.61,142.57,7.0139]
[1723786196184,7.26318,142.61,142.57,7.0139]
[1723786198151,7.26318,142.61,142.56,24.5503]
[1723786199551,0.12549,142.57,142.53,17.5397]
[1723786199752,7.26508,142.57,142.53,17.5397]
[1723786199959,7.26508,142.57,142.51,35.4893]
[1723786199960,0.25098,142.57,142.51,35.4893]
[1723786200267,0.12549,142.53,142.5,17.5432]
[1723786200475,7.14159,142.53,142.49,27.0179]
[1723786200650,0.12549,142.54,142.5,7.0174]
[1723786200851,0.12549,142.53,142.5,7.0174]
[1723786201049,0.25098,142.53,142.5,7.0174]
[1723786201278,0.12549,142.54,142.5,7.0174]
[1723786201780,0.25098,142.53,142.5,7.0174]
[1723786202676,0.12549,142.53,142.5,7.0174]
[1723786202989,0.25098,142.54,142.51,20.0]
[1723786203187,0.25098,142.54,142.51,27.0169]
[1723786203514,0.12549,142.54,142.51,27.0169]
[1723786203799,0.25098,142.55,142.51,27.0169]
[1723786204212,0.25098,142.55,142.51,7.0169]
[1723786204594,0.25098,142.55,142.51,27.0169]
[1723786206884,0.25098,142.55,142.51,7.0169]
[1723786207495,7.26628,142.55,142.5,7.0174]
[1723786208683,7.0156,142.54,142.5,7.0174]
[1723786208879,0.25098,142.53,142.5,7.0174]
[1723786209292,0.12549,142.53,142.5,7.0174]
[1723786209611,0.12549,142.54,142.51,27.0169]
[1723786209823,0.12549,142.55,142.51,27.0169]
[1723786210416,7.0146,142.56,142.51,27.0169]
[1723786211232,7.0146,142.56,142.52,7.0164]
[1723786211933,7.0142,142.57,142.52,7.0164]
[1723786212902,0.12549,142.56,142.52,7.0164]
[1723786213314,7.0137,142.58,142.53,27.0159]
[1723786213791,7.0137,142.58,142.54,7.0154]
[1723786213994,35.0561,142.63,142.56,20.0]
[1723786213995,7.0112,142.63,142.56,20.0]
[1723786214220,31.3129,142.65,142.57,17.5346]
[1723786214411,7.0116,142.62,142.57,17.5346]
[1723786214824,7.0124,142.61,142.57,17.5346]
[1723786215698,0.25098,142.6,142.57,17.5346]
[1723786216624,0.25098,142.6,142.57,24.5485]
[1723786216828,7.0112,142.63,142.58,27.0134]
[1723786218041,7.0112,142.63,142.59,7.013]
[1723786218223,0.12549,142.62,142.59,7.013]
[1723786218928,0.25098,142.62,142.59,7.013]
[1723786219237,7.0112,142.63,142.59,7.013]
[1723786220026,7.0112,142.63,142.58,27.0134]
[1723786221448,0.12549,142.6,142.57,17.5346]
[1723786221748,0.25098,142.6,142.57,17.5346]
[1723786224722,0.12549,142.6,142.57,17.5346]
[1723786224925,17.5252,142.66,142.58,27.0135]
[1723786224926,7.0112,142.63,142.58,27.0135]
[1723786225138,7.0112,142.63,142.58,7.0135]
[1723786225746,7.0112,142.63,142.59,7.0131]
[1723786226156,0.12549,142.62,142.59,7.0131]
[1723786226457,31.25210618,142.68,142.61,20.0]
[1723786226656,31.25210618,142.68,142.61,27.012]
[1723786226657,7.0102,142.65,142.61,27.012]
[1723786226860,10.58,142.68,142.62,7.0116]
[1723786227149,7.0095,142.67,142.63,20.0]
[1723786227462,7.0095,142.67,142.62,27.0116]
[1723786228128,7.0087,142.68,142.62,20.0]
[1723786228587,7.0082,142.69,142.64,27.0105]
[1723786229228,36.58173561,142.72,142.64,20.0]
[1723786229229,7.0077,142.7,142.64,20.0]
[1723786229451,7.0077,142.7,142.65,7.01]
[1723786229930,7.0077,142.7,142.65,22.2489]
[1723786230824,7.0072,142.71,142.66,27.0096]
[1723786231026,7.0067,142.72,142.67,7.009]
[1723786231530,7.0067,142.72,142.68,20.0]
[1723786231938,28.0932,142.75,142.68,20.0]
[1723786231939,7.0063,142.73,142.68,27.0085]
[1723786232348,31.7277,142.78,142.7,20.0]
[1723786232554,24.7978,142.78,142.71,7.0071]
[1723786232752,7.0053,142.75,142.7,7.0076]
[1723786233769,7.0048,142.76,142.71,7.0071]
[1723786233941,7.0048,142.76,142.72,20.0]
[1723786235167,7.25618,142.75,142.7,22.401]
[1723786235671,7.25618,142.75,142.71,7.0072]
[1723786235840,0.25098,142.75,142.71,7.0072]
[1723786236746,0.25098,142.75,142.71,27.0072]
[1723786236947,0.25098,142.75,142.71,7.0072]
[1723786237365,33.75551456,142.81,142.75,20.0]
[1723786237673,14.2178,142.82,142.75,20.0]
[1723786238057,14.2178,142.82,142.73,20.0]
[1723786238058,26.43,142.81,142.73,20.0]
[1723786238379,7.0044,142.77,142.73,20.0]
[1723786238552,0.12549,142.77,142.73,27.0061]
[1723786238885,7.25528,142.77,142.73,7.0062]
[1723786239170,7.25528,142.77,142.72,7.0066]
[1723786239171,7.0047,142.76,142.72,7.0066]
[1723786239479,7.0047,142.76,142.71,27.0071]
[1723786240447,0.12549,142.75,142.71,7.0071]
[1723786240645,0.12549,142.75,142.67,7.0091]
[1723786240646,7.0068,142.72,142.67,7.0091]
[1723786240882,26.68098,142.75,142.69,20.0]
[1723786241177,26.68098,142.75,142.71,20.0]
[1723786241178,0.12549,142.75,142.71,20.0]
[1723786241387,7.13129,142.74,142.71,20.0]
[1723786242654,7.0058,142.74,142.71,20.0]
[1723786243669,7.25718,142.73,142.68,44.5294]
[1723786244190,26.43,142.71,142.63,20.0]
[1723786244375,0.12549,142.7,142.63,20.0]
[1723786244542,0.25098,142.7,142.62,53.9101]
[1723786244739,7.0087,142.68,142.64,7.0106]
[1723786244979,7.0087,142.68,142.63,7.011]
[1723786245363,7.0087,142.68,142.64,7.0106]
[1723786245545,0.25098,142.7,142.64,7.0106]
[1723786245881,7.25868,142.7,142.65,7.0101]
[1723786246555,7.0082,142.69,142.65,7.0101]
[1723786246759,7.0082,142.69,142.64,7.0105]
[1723786248579,26.43,142.75,142.66,20.0]
[1723786248760,7.0067,142.72,142.68,20.0]
[1723786248966,26.43,142.75,142.68,27.0086]
[1723786248967,7.0063,142.73,142.68,27.0086]
[1723786249150,7.0063,142.73,142.7,20.0]
[1723786249643,7.0067,142.72,142.7,20.0]
[1723786249983,7.0063,142.73,142.69,20.0]
[1723786252255,0.12549,142.74,142.71,20.0]
[1723786252477,7.0053,142.75,142.72,0.39350873]
[1723786252651,7.0053,142.75,142.71,20.0]
[1723786253261,7.0048,142.76,142.71,27.007]
[1723786253675,7.0048,142.76,142.74,20.0]
[1723786253872,17.5075,142.8,142.74,20.0]
[1723786253873,7.0043,142.77,142.74,20.0]
[1723786254388,7.0047,142.76,142.72,7.0067]
[1723786254558,7.0047,142.76,142.71,7.007]
[1723786254757,7.0047,142.76,142.74,20.0]
[1723786255498,7.0047,142.76,142.71,7.007]
[1723786255661,17.5075,142.8,142.7,37.5182]
[1723786255862,0.12549,142.81,142.74,20.0]
[1723786256080,7.0032,142.8,142.77,20.0]
[1723786256382,7.0033,142.79,142.77,20.0]
[1723786256555,7.0033,142.79,142.75,7.0052]
[1723786256757,7.0033,142.79,142.74,7.0056]
[1723786256980,7.0033,142.79,142.74,27.0056]
[1723786257756,7.0033,142.79,142.74,7.0056]
[1723786258289,7.25478,142.78,142.74,7.0056]
[1723786258606,7.12929,142.78,142.73,7.0061]
[1723786258958,7.12929,142.78,142.74,20.0]
[1723786259385,7.0033,142.79,142.74,20.0]
[1723786259597,7.0033,142.79,142.72,37.516]
[1723786259770,7.0033,142.79,142.74,7.0056]
[1723786260176,0.12549,142.78,142.74,7.0056]
[1723786260695,7.0044,142.77,142.72,37.516]
[1723786261017,7.25488,142.78,142.74,7.0057]
[1723786261303,0.25098,142.78,142.75,7.0051]
[1723786261457,0.12549,142.78,142.75,7.0051]
[1723786261661,0.12549,142.78,142.74,27.0056]
[1723786261862,7.0048,142.76,142.72,17.516]
[1723786262098,0.12549,142.78,142.72,37.516]
[1723786262600,7.12959,142.78,142.73,7.006]
[1723786262790,0.12549,142.77,142.73,7.006]
[1723786263187,7.12959,142.78,142.73,7.006]
[1723786263871,7.0043,142.77,142.73,7.006]
[1723786264494,7.0048,142.76,142.72,37.516]
[1723786264798,0.12549,142.78,142.72,37.516]
[1723786264799,0.12549,142.77,142.73,7.0061]
[1723786264972,0.25098,142.77,142.73,7.0061]
[1723786266572,0.25098,142.77,142.74,20.0]
[1723786266786,0.12549,142.77,142.74,7.0056]
[1723786267007,7.25478,142.78,142.74,7.0056]
[1723786267171,7.25478,142.78,142.73,7.0061]
[1723786267512,7.0046,142.77,142.72,44.5226]
[1723786267687,7.0046,142.77,142.74,20.0]
[1723786268299,0.12549,142.76,142.74,20.0]
[1723786268502,0.25098,142.76,142.74,20.0]
[1723786268707,7.0046,142.77,142.74,20.0]
[1723786269278,0.12549,142.77,142.74,20.0]
[1723786269687,7.25478,142.78,142.75,7.0051]
[1723786269688,0.12549,142.78,142.75,7.0051]
[1723786269898,0.12549,142.79,142.75,7.0051]
[1723786269899,0.25098,142.79,142.75,7.0051]
[1723786270607,7.0027,142.81,142.76,27.0046]
[1723786271199,7.0027,142.81,142.77,7.0041]
[1723786271581,7.0018,142.82,142.77,7.0041]
[1723786272414,58.1504,142.84,142.74,7.0057]
[1723786272585,7.0029,142.8,142.75,7.0052]
[1723786272789,0.12549,142.79,142.75,7.0052]
[1723786273091,0.25098,142.79,142.75,7.0052]
[1723786274077,0.25098,142.79,142.75,27.0052]
[1723786274274,7.25428,142.79,142.75,27.0052]
[1723786276010,13.66746226,142.85,142.79,20.0]
[1723786276311,6.344,142.85,142.79,20.0]
[1723786276887,7.0014,142.83,142.79,27.0032]
[1723786277514,74.27740618,142.89,142.8,0.39112538]
[1723786277515,39.28310618,142.89,142.8,0.39112538]
[1723786277712,7.0012,142.84,142.79,24.5106]
[1723786278017,37.4978,142.88,142.79,37.5074]
[1723786278318,7.0015,142.83,142.79,44.5106]
[1723786278482,7.0018,142.82,142.79,17.5074]
[1723786278679,0.12549,142.87,142.79,37.5074]
[1723786278992,7.0014,142.83,142.79,44.5106]
[1723786279215,7.0014,142.83,142.79,17.5074]
[1723786279525,7.0014,142.83,142.79,44.5105]
[1723786279818,0.25098,142.84,142.79,17.5074]
[1723786280391,0.25098,142.84,142.79,37.5074]
[1723786281086,7.25198,142.84,142.79,44.5105]
[1723786282289,7.001,142.84,142.79,44.5105]
[1723786283811,0.12549,142.82,142.76,15.5687]
[1723786283995,7.0041,142.78,142.76,15.5687]
[1723786284196,0.12549,142.77,142.72,36.1605]
[1723786284410,0.12549,142.79,142.72,36.1605]
[1723786284715,0.12549,142.79,142.75,20.0]
[1723786284924,0.12549,142.8,142.75,20.0]
[1723786284925,0.25098,142.8,142.75,20.0]
[1723786285129,7.0038,142.78,142.75,20.0]
[1723786285331,7.0038,142.78,142.73,7.0058]
[1723786286032,7.0038,142.78,142.75,20.0]
[1723786286219,7.0033,142.79,142.75,20.0]
[1723786287723,7.0033,142.79,142.74,7.0056]
[1723786287930,7.0037,142.78,142.73,7.0061]
[1723786289039,7.0037,142.78,142.74,20.0]
[1723786289236,7.0037,142.78,142.73,7.0061]
[1723786289405,7.0037,142.78,142.74,20.0]
[1723786289612,7.0037,142.78,142.73,7.0061]
[1723786290135,7.0037,142.78,142.74,20.0]
[1723786291821,7.0037,142.78,142.73,7.0061]
[1723786292024,7.0043,142.77,142.75,20.0]
[1723786293412,0.12549,142.78,142.75,20.0]
[1723786293413,7.12929,142.78,142.75,20.0]
[1723786293910,7.0038,142.78,142.75,20.0]
[1723786294709,7.0033,142.79,142.75,20.0]
[1723786295111,7.0033,142.79,142.74,33.5986]
[1723786296232,7.0033,142.79,142.74,13.5986]
[1723786296531,7.0033,142.79,142.74,33.5986]
[1723786297032,7.0033,142.79,142.77,20.0]
[1723786297532,7.0033,142.79,142.75,7.005]
[1723786297919,7.0033,142.79,142.78,20.0]
[1723786298234,7.12839,142.8,142.78,20.0]
[1723786298536,7.0023,142.81,142.78,20.0]
[1723786300413,7.0023,142.81,142.8,20.0]
[1723786300615,7.0019,142.82,142.8,20.0]
[1723786301910,6.9989,142.88,142.85,20.0]
[1723786302127,6.9993,142.87,142.85,20.0]
[1723786302327,31.7116,142.91,142.85,20.0]
[1723786302537,6.9994,142.87,142.85,20.0]
[1723786302837,6.9994,142.87,142.83,36.311]
[1723786303037,6.9994,142.87,142.85,20.0]
[1723786303424,6.9989,142.88,142.83,23.3122]
[1723786303744,6.9994,142.87,142.84,20.0]
[1723786303922,6.9994,142.87,142.86,20.0]
[1723786305233,6.9994,142.87,142.84,20.0]
[1723786306622,6.9994,142.87,142.86,20.0]
[1723786306834,6.9989,142.88,142.86,20.0]
[1723786307030,7.31915895,142.93,142.88,20.0]
[1723786307233,58.1382,142.94,142.88,20.0]
[1723786308145,6.9979,142.9,142.88,20.0]
[1723786308953,0.25098,142.91,142.84,20.0]
[1723786308954,6.9995,142.87,142.84,20.0]
[1723786309149,6.9995,142.87,142.83,33.8134]
[1723786309150,7.0003,142.85,142.83,16.311]
[1723786309321,0.12549,142.88,142.84,20.0]
[1723786309651,6.9994,142.87,142.84,20.0]
[1723786310239,6.9994,142.87,142.83,16.311]
[1723786310240,7.12539,142.86,142.83,16.311]
[1723786310449,6.9999,142.86,142.83,16.311]
[1723786311538,6.9999,142.86,142.84,20.0]
[1723786314425,7.31931464,142.94,142.92,20.0]
[1723786314628,20.0,143.01,142.92,20.0]
[1723786314836,26.43,143.0,142.92,20.0]
[1723786315566,7.837455,142.98,142.92,26.9968]
[1723786315860,0.843055,142.98,142.91,24.4899]
[1723786316024,6.9945,142.97,142.91,24.4899]
[1723786316228,6.9945,142.97,142.92,20.0]
[1723786316430,6.9945,142.97,142.91,17.4926]
[1723786316650,0.12549,142.96,142.91,17.4926]
[1723786317224,0.25098,142.96,142.91,17.4926]
[1723786317641,7.12049,142.96,142.91,24.4899]
[1723786317837,0.12549,142.95,142.91,24.4899]
[1723786318674,0.25098,142.95,142.91,24.4899]
[1723786319730,0.843055,142.98,142.93,20.0]
[1723786320153,0.843055,142.98,142.94,6.9959]
[1723786321024,0.12549,142.97,142.93,37.4903]
[1723786321230,0.12549,142.97,142.93,20.0]
[1723786321442,6.995,142.96,142.91,26.9972]
[1723786321659,6.9945,142.97,142.92,6.9968]
[1723786321955,7.12039,142.96,142.92,6.9968]
[1723786322256,7.12039,142.96,142.91,26.9973]
[1723786322497,6.9959,142.94,142.9,17.4942]
[1723786323052,6.9964,142.93,142.89,26.9982]
[1723786323561,7.12149,142.94,142.89,26.9982]
[1723786324854,0.12549,142.94,142.89,20.0]
[1723786325090,6.9965,142.93,142.89,20.0]
[1723786325287,6.9965,142.93,142.89,26.9982]
[1723786327056,0.12549,142.94,142.9,6.9977]
[1723786327882,7.12149,142.94,142.9,6.9977]
[1723786328255,7.12149,142.94,142.89,26.9983]
[1723786329095,7.12099,142.95,142.92,20.0]
[1723786329277,7.12099,142.95,142.91,6.9972]
[1723786329278,0.843055,142.98,142.94,20.0]
[1723786329794,0.843055,142.98,142.96,20.0]
[1723786330559,0.843055,142.98,142.94,26.9959]
[1723786330981,0.843055,142.98,142.93,6.9963]
[1723786330982,7.837155,142.98,142.93,6.9963]
[1723786331475,0.843055,142.98,142.92,20.0]
[1723786331676,0.12549,142.97,142.92,26.9968]
[1723786331996,7.11999,142.97,142.94,20.0]
[1723786332178,7.11999,142.97,142.93,6.9964]
[1723786333999,7.11999,142.97,142.92,26.9969]
[1723786334177,7.12049,142.96,142.92,26.9969]
[1723786334378,7.12049,142.96,142.89,26.9983]
[1723786334379,6.9963,142.94,142.89,26.9983]
[1723786335205,0.12549,142.92,142.89,26.9983]
[1723786335699,0.12549,142.92,142.88,16.3631]
[1723786335906,0.25098,142.92,142.85,17.5003]
[1723786336232,7.12449,142.88,142.84,36.1197]
[1723786336381,0.12549,142.9,142.84,36.1197]
[1723786336592,0.25098,142.91,142.87,20.0]
[1723786336789,0.25098,142.91,142.84,36.1197]
[1723786337382,0.25098,142.91,142.87,20.0]
[1723786337606,0.12549,142.91,142.87,6.9993]
[1723786337919,0.12549,142.91,142.9,20.0]
[1723786338121,0.12549,142.92,142.9,20.0]
[1723786338304,7.24788,142.92,142.88,26.9988]
[1723786338619,7.24788,142.92,142.89,20.0]
[1723786340386,6.9974,142.91,142.86,24.4986]
[1723786341518,7.24788,142.92,142.87,6.999]
[1723786342730,6.9964,142.93,142.87,20.0]
[1723786342889,6.996,142.94,142.92,20.0]
[1723786343429,6.9954,142.95,142.92,20.0]
[1723786343744,6.995,142.96,142.92,20.0]
[1723786344525,6.995,142.96,142.94,20.0]
[1723786344712,0.25098,142.95,142.94,20.0]
[1723786344893,6.995,142.96,142.94,20.0]
[1723786345858,6.9945,142.97,142.94,20.0]
[1723786346032,6.9945,142.97,142.92,26.9968]
[1723786346355,0.12549,142.96,142.92,26.9968]
[1723786346652,0.12549,142.96,142.94,20.0]
[1723786347234,6.995,142.96,142.94,20.0]
[1723786348520,0.12549,142.97,142.9,34.1102]
[1723786348848,0.25098,142.97,142.9,34.1102]
[1723786350162,6.9959,142.94,142.9,41.1079]
[1723786351919,7.11999,142.97,142.92,6.9968]
[1723786353047,7.11999,142.97,142.93,20.0]
[1723786353249,6.9945,142.97,142.93,20.0]
[1723786354549,0.12549,142.97,142.91,6.9973]
[1723786354754,0.25098,142.97,142.91,6.9973]
[1723786354973,6.995,142.96,142.91,26.9973]
[1723786359534,6.995,142.96,142.91,6.9973]
[1723786360286,6.995,142.96,142.92,20.0]
[1723786360481,6.995,142.96,142.91,6.9973]
[1723786361184,6.9954,142.95,142.91,6.9973]
[1723786361677,6.9954,142.95,142.91,26.9973]
[1723786361856,6.995,142.96,142.91,26.9973]
[1723786362060,6.995,142.96,142.91,6.9973]
[1723786362262,0.25098,142.97,142.9,34.1102]
[1723786362263,7.12089,142.95,142.9,17.4941]
[1723786363491,7.12089,142.95,142.91,26.997]
[1723786363492,0.12549,142.95,142.91,26.997]
[1723786363794,6.995,142.96,142.91,26.997]
[1723786366571,27.273055,142.98,142.92,37.4917]
[1723786366572,7.837155,142.98,142.92,37.4917]
[1723786366773,7.837155,142.98,142.94,20.0]
[1723786366957,7.837155,142.98,142.92,17.4917]
[1723786367282,6.9947,142.97,142.92,24.4885]
[1723786367890,0.25098,142.96,142.92,24.4885]
[1723786368475,0.12549,142.96,142.93,20.0]
[1723786368669,6.9947,142.97,142.93,26.9964]
[1723786369972,6.9947,142.97,142.93,6.9964]
[1723786370483,6.9947,142.97,142.93,26.9964]
[1723786371270,6.9947,142.97,142.93,6.9964]
[1723786373287,7.12059,142.96,142.92,24.4885]
[1723786373677,7.12059,142.96,142.92,44.4885]
[1723786375799,7.12009,142.97,142.92,44.4885]
[1723786375999,0.12549,142.96,142.92,44.4885]
[1723786379068,7.12049,142.96,142.92,44.4885]
[1723786379396,7.12049,142.96,142.92,24.4885]
[1723786381705,0.12549,142.96,142.92,24.4885]
[1723786382083,0.12549,142.96,142.92,44.4885]
[1723786382678,0.843055,142.98,142.94,20.0]
[1723786382878,0.843055,142.98,142.94,26.9959]
[1723786383618,0.843055,142.98,142.94,6.9959]
[1723786383919,0.843055,142.98,142.94,26.9959]
[1723786384276,0.843055,142.98,142.94,6.9959]